[Event "Titled Tuesday Blitz May 25 2021"]
[White "Blanco Ronquillo, Humberto L."]
[Black "Turzo, Attila"]
[WhiteFideId "3504239"]
[BlackFideId "704954"]
[WhiteElo "2423"]
[BlackElo "2509"]
[Result "1/2-1/2"]
[Round "07"]
[TimeControl "180+1"]
[Date "2021.05.25"]
[WhiteClock "0:00:21"]
[BlackClock "0:00:40"]

1. d4 {[%clk 0:03:00]}  d5 {[%clk 0:02:59]} 2. c4 {[%clk 0:03:00]}  c6 {[%clk 0:03:00]} 3. Nc3 {[%clk 0:03:00]}  Nf6 {[%clk 0:03:00]} 4. e3 {[%clk 0:03:01]}  a6 {[%clk 0:03:00]} 5. Nf3 {[%clk 0:03:00]}  Bf5 {[%clk 0:02:59]} 6. Bd3 {[%clk 0:02:59]}  Bg6 {[%clk 0:02:57]} 7. O-O {[%clk 0:02:58]}  e6 {[%clk 0:02:57]} 8. Re1 {[%clk 0:02:52]}  Be7 {[%clk 0:02:51]} 9. e4 {[%clk 0:02:49]}  dxe4 {[%clk 0:02:52]} 10. Nxe4 {[%clk 0:02:50]}  Nbd7 {[%clk 0:02:52]} 11. Bf4 {[%clk 0:02:48]}  O-O {[%clk 0:02:52]} 12. Nc3 {[%clk 0:02:33]}  b5 {[%clk 0:02:43]} 13. Bxg6 {[%clk 0:02:23]}  hxg6 {[%clk 0:02:42]} 14. b3 {[%clk 0:02:19]}  Bb4 {[%clk 0:02:32]} 15. Qc2 {[%clk 0:02:12]}  Qa5 {[%clk 0:02:30]} 16. Bd2 {[%clk 0:02:06]}  bxc4 {[%clk 0:02:24]} 17. bxc4 {[%clk 0:02:07]}  Qf5 {[%clk 0:02:24]} 18. Qa4 {[%clk 0:02:01]}  a5 {[%clk 0:02:20]} 19. a3 {[%clk 0:01:59]}  Nb6 {[%clk 0:02:06]} 20. Qxc6 {[%clk 0:01:37]}  Bxc3 {[%clk 0:01:42]} 21. Bxc3 {[%clk 0:01:38]}  Nfd7 {[%clk 0:01:42]} 22. c5 {[%clk 0:01:07]}  Rfc8 {[%clk 0:01:41]} 23. Qb5 {[%clk 0:01:04]}  Nd5 {[%clk 0:01:37]} 24. Bd2 {[%clk 0:01:04]}  Nb8 {[%clk 0:01:30]} 25. Ne5 {[%clk 0:01:00]}  f6 {[%clk 0:01:23]} 26. Nc4 {[%clk 0:00:58]}  Nc6 {[%clk 0:01:22]} 27. Nd6 {[%clk 0:00:58]}  Nxd4 {[%clk 0:01:20]} 28. Qc4 {[%clk 0:00:44]}  Qg4 {[%clk 0:01:19]} 29. Re4 {[%clk 0:00:33]}  Nf3+ {[%clk 0:01:16]} 30. Kh1 {[%clk 0:00:34]}  Nxd2 {[%clk 0:01:16]} 31. Rxg4 {[%clk 0:00:35]}  Nxc4 {[%clk 0:01:16]} 32. Rxc4 {[%clk 0:00:35]}  Rc6 {[%clk 0:01:13]} 33. Re1 {[%clk 0:00:35]}  e5 {[%clk 0:01:05]} 34. Rd1 {[%clk 0:00:35]}  Nf4 {[%clk 0:01:04]} 35. Ne4 {[%clk 0:00:31]}  Ne6 {[%clk 0:01:01]} 36. Rd6 {[%clk 0:00:30]}  Rac8 {[%clk 0:00:59]} 37. Rxc6 {[%clk 0:00:19]}  Rxc6 {[%clk 0:01:00]} 38. Kg1 {[%clk 0:00:18]}  f5 {[%clk 0:00:59]} 39. Nd6 {[%clk 0:00:18]}  Rxc5 {[%clk 0:00:58]} 40. Rxc5 {[%clk 0:00:19]}  Nxc5 {[%clk 0:00:59]} 41. Nc4 {[%clk 0:00:19]}  a4 {[%clk 0:00:53]} 42. Nxe5 {[%clk 0:00:19]}  g5 {[%clk 0:00:53]} 43. Kf1 {[%clk 0:00:19]}  Kf8 {[%clk 0:00:49]} 44. Ke2 {[%clk 0:00:20]}  Ke7 {[%clk 0:00:50]} 45. Ke3 {[%clk 0:00:19]}  Ke6 {[%clk 0:00:49]} 46. Nc4 {[%clk 0:00:19]}  Kd5 {[%clk 0:00:48]} 47. Nb6+ {[%clk 0:00:20]}  Kc6 {[%clk 0:00:48]} 48. Nc4 {[%clk 0:00:20]}  Kd5 {[%clk 0:00:47]} 49. Nb6+ {[%clk 0:00:20]}  Kc6 {[%clk 0:00:43]} 50. Nc4 {[%clk 0:00:21]}  Kd5 {[%clk 0:00:40]} 1/2-1/2


[Site "https://www.chess.com"]

[Event "Titled Tuesday Blitz May 25 2021"]
[White "Cardoso Cardoso, Jose Gabriel"]
[Black "Sanal, Vahap"]
[WhiteFideId "4430492"]
[BlackFideId "6300545"]
[WhiteElo "2343"]
[BlackElo "2507"]
[Result "0-1"]
[Round "07"]
[TimeControl "180+1"]
[Date "2021.05.25"]
[WhiteClock "0:00:02"]
[BlackClock "0:00:30"]

1. d4 {[%clk 0:03:00]}  d6 {[%clk 0:03:00]} 2. Nf3 {[%clk 0:03:00]}  c5 {[%clk 0:02:58]} 3. e4 {[%clk 0:02:57]}  cxd4 {[%clk 0:02:58]} 4. Nxd4 {[%clk 0:02:58]}  Nf6 {[%clk 0:02:55]} 5. Nc3 {[%clk 0:02:58]}  e6 {[%clk 0:02:54]} 6. g4 {[%clk 0:02:56]}  h6 {[%clk 0:02:54]} 7. h4 {[%clk 0:02:55]}  Be7 {[%clk 0:02:51]} 8. Rg1 {[%clk 0:02:51]}  d5 {[%clk 0:02:50]} 9. g5 {[%clk 0:02:33]}  hxg5 {[%clk 0:02:49]} 10. hxg5 {[%clk 0:02:32]}  Nxe4 {[%clk 0:02:49]} 11. Nxe4 {[%clk 0:02:32]}  dxe4 {[%clk 0:02:50]} 12. Be3 {[%clk 0:02:22]}  Qa5+ {[%clk 0:02:43]} 13. c3 {[%clk 0:02:13]}  Bd7 {[%clk 0:02:34]} 14. Qc2 {[%clk 0:02:01]}  Qe5 {[%clk 0:02:26]} 15. O-O-O {[%clk 0:01:49]}  Nc6 {[%clk 0:02:23]} 16. Be2 {[%clk 0:01:23]}  Nb4 {[%clk 0:02:08]} 17. Qb3 {[%clk 0:01:13]}  Rc8 {[%clk 0:02:04]} 18. Kb1 {[%clk 0:01:10]}  Nd5 {[%clk 0:02:01]} 19. Bc1 {[%clk 0:01:02]}  Rh2 {[%clk 0:01:53]} 20. Rh1 {[%clk 0:00:55]}  Kf8 {[%clk 0:01:27]} 21. f4 {[%clk 0:00:41]}  exf3 {[%clk 0:01:27]} 22. Nxf3 {[%clk 0:00:41]}  Qxe2 {[%clk 0:01:02]} 23. Rxh2 {[%clk 0:00:41]}  Qe4+ {[%clk 0:01:02]} 24. Ka1 {[%clk 0:00:38]}  Bd6 {[%clk 0:00:58]} 25. Rh8+ {[%clk 0:00:33]}  Ke7 {[%clk 0:00:58]} 26. Rxc8 {[%clk 0:00:32]}  Bxc8 {[%clk 0:00:59]} 27. Nd4 {[%clk 0:00:30]}  a6 {[%clk 0:00:56]} 28. a3 {[%clk 0:00:29]}  b5 {[%clk 0:00:55]} 29. Nc6+ {[%clk 0:00:22]}  Ke8 {[%clk 0:00:53]} 30. Nb4 {[%clk 0:00:22]}  Bb7 {[%clk 0:00:53]} 31. Qc2 {[%clk 0:00:13]}  Qc4 {[%clk 0:00:45]} 32. Rd4 {[%clk 0:00:11]}  Qc7 {[%clk 0:00:36]} 33. Qe2 {[%clk 0:00:11]}  Be5 {[%clk 0:00:35]} 34. Re4 {[%clk 0:00:08]}  Nxc3 {[%clk 0:00:33]} 35. bxc3 {[%clk 0:00:04]}  Qxc3+ {[%clk 0:00:34]} 36. Kb1 {[%clk 0:00:04]}  Qb3+ {[%clk 0:00:30]} 37. Bb2 {[%clk 0:00:02]}  Bxe4+ {[%clk 0:00:31]} 38. Kc1 {[%clk 0:00:02]}  Bf4+ {[%clk 0:00:30]} 0-1


[Site "https://www.chess.com"]

[Event "Titled Tuesday Blitz May 25 2021"]
[White "Costachi, Mihnea"]
[Black "Gabdushev, Ruslan"]
[WhiteFideId "1217518"]
[BlackFideId "4137833"]
[WhiteElo "2479"]
[BlackElo "2312"]
[Result "1-0"]
[Round "07"]
[TimeControl "180+1"]
[Date "2021.05.25"]
[WhiteClock "0:00:30"]
[BlackClock "0:00:01"]

1. d4 {[%clk 0:03:00]}  c6 {[%clk 0:02:59]} 2. c4 {[%clk 0:03:01]}  Qa5+ {[%clk 0:02:58]} 3. Nc3 {[%clk 0:02:59]}  g5 {[%clk 0:02:58]} 4. h4 {[%clk 0:02:56]}  g4 {[%clk 0:02:54]} 5. e4 {[%clk 0:02:54]}  Bg7 {[%clk 0:02:53]} 6. h5 {[%clk 0:02:51]}  h6 {[%clk 0:02:45]} 7. Be3 {[%clk 0:02:48]}  d6 {[%clk 0:02:44]} 8. Be2 {[%clk 0:02:47]}  Nf6 {[%clk 0:02:43]} 9. Qd2 {[%clk 0:02:44]}  Nbd7 {[%clk 0:02:36]} 10. O-O-O {[%clk 0:02:43]}  Nf8 {[%clk 0:02:35]} 11. e5 {[%clk 0:02:40]}  dxe5 {[%clk 0:02:26]} 12. dxe5 {[%clk 0:02:39]}  N6d7 {[%clk 0:02:26]} 13. f4 {[%clk 0:02:14]}  gxf3 {[%clk 0:02:15]} 14. Nxf3 {[%clk 0:02:14]}  Nxe5 {[%clk 0:02:09]} 15. Nxe5 {[%clk 0:02:14]}  Bxe5 {[%clk 0:02:08]} 16. Bd4 {[%clk 0:02:15]}  Ne6 {[%clk 0:02:04]} 17. Bxe5 {[%clk 0:02:10]}  Qxe5 {[%clk 0:02:03]} 18. Kb1 {[%clk 0:02:10]}  Qc7 {[%clk 0:01:38]} 19. Rhf1 {[%clk 0:01:44]}  Bd7 {[%clk 0:01:16]} 20. Bg4 {[%clk 0:01:42]}  Rd8 {[%clk 0:01:14]} 21. Ne4 {[%clk 0:01:37]}  Bc8 {[%clk 0:01:04]} 22. Qc3 {[%clk 0:01:23]}  Rxd1+ {[%clk 0:01:00]} 23. Bxd1 {[%clk 0:01:24]}  Rg8 {[%clk 0:00:58]} 24. g4 {[%clk 0:01:25]}  c5 {[%clk 0:00:51]} 25. Qf3 {[%clk 0:01:18]}  f6 {[%clk 0:00:47]} 26. Qe3 {[%clk 0:01:15]}  Qe5 {[%clk 0:00:39]} 27. Re1 {[%clk 0:01:15]}  Qd4 {[%clk 0:00:34]} 28. Qxh6 {[%clk 0:01:07]}  Qd3+ {[%clk 0:00:31]} 29. Bc2 {[%clk 0:01:07]}  Qxc4 {[%clk 0:00:26]} 30. Nc3 {[%clk 0:00:45]}  Qxg4 {[%clk 0:00:20]} 31. Bg6+ {[%clk 0:00:45]}  Kd8 {[%clk 0:00:18]} 32. Nd5 {[%clk 0:00:42]}  Bd7 {[%clk 0:00:13]} 33. Nxe7 {[%clk 0:00:38]}  Kxe7 {[%clk 0:00:04]} 34. Qh7+ {[%clk 0:00:38]}  Kd6 {[%clk 0:00:02]} 35. Qxg8 {[%clk 0:00:37]}  Nd4 {[%clk 0:00:02]} 36. Qf8+ {[%clk 0:00:37]}  Kc6 {[%clk 0:00:01]} 37. Qxf6+ {[%clk 0:00:37]}  Kc7 {[%clk 0:00:01]} 38. Qe5+ {[%clk 0:00:37]}  Kb6 {[%clk 0:00:01]} 39. Qe4 {[%clk 0:00:30]} 1-0


[Site "https://www.chess.com"]

[Event "Titled Tuesday Blitz May 25 2021"]
[White "Csonka, Balazs"]
[Black "Gontcharov, Vladislav"]
[WhiteFideId "742910"]
[BlackFideId "4123492"]
[WhiteElo "2404"]
[BlackElo "2503"]
[Result "1/2-1/2"]
[Round "07"]
[TimeControl "180+1"]
[Date "2021.05.25"]
[WhiteClock "0:00:05"]
[BlackClock "0:00:16"]

1. e4 {[%clk 0:03:00]}  e6 {[%clk 0:02:53]} 2. d4 {[%clk 0:03:00]}  d5 {[%clk 0:02:54]} 3. Bd3 {[%clk 0:03:00]}  dxe4 {[%clk 0:02:53]} 4. Bxe4 {[%clk 0:03:01]}  Nf6 {[%clk 0:02:53]} 5. Bf3 {[%clk 0:03:02]}  Nbd7 {[%clk 0:02:53]} 6. Ne2 {[%clk 0:02:58]}  Bd6 {[%clk 0:02:52]} 7. O-O {[%clk 0:02:57]}  e5 {[%clk 0:02:52]} 8. Ng3 {[%clk 0:02:46]}  O-O {[%clk 0:02:47]} 9. Re1 {[%clk 0:02:42]}  exd4 {[%clk 0:02:43]} 10. Qxd4 {[%clk 0:02:33]}  Re8 {[%clk 0:02:42]} 11. Be3 {[%clk 0:02:00]}  Bc5 {[%clk 0:02:33]} 12. Qd2 {[%clk 0:01:55]}  Bxe3 {[%clk 0:02:32]} 13. Rxe3 {[%clk 0:01:56]}  Rxe3 {[%clk 0:02:31]} 14. Qxe3 {[%clk 0:01:57]}  Nf8 {[%clk 0:02:31]} 15. Nc3 {[%clk 0:01:48]}  c6 {[%clk 0:02:30]} 16. Rd1 {[%clk 0:01:47]}  Qc7 {[%clk 0:02:27]} 17. Nge4 {[%clk 0:01:41]}  Nxe4 {[%clk 0:02:18]} 18. Nxe4 {[%clk 0:01:42]}  Be6 {[%clk 0:02:14]} 19. Nc5 {[%clk 0:01:37]}  a5 {[%clk 0:01:46]} 20. a3 {[%clk 0:01:21]}  Re8 {[%clk 0:01:19]} 21. Qd2 {[%clk 0:01:14]}  b6 {[%clk 0:01:13]} 22. Nxe6 {[%clk 0:01:01]}  Rxe6 {[%clk 0:01:09]} 23. g3 {[%clk 0:00:46]}  Qe5 {[%clk 0:01:00]} 24. Qd4 {[%clk 0:00:37]}  Qxd4 {[%clk 0:00:48]} 25. Rxd4 {[%clk 0:00:37]}  g6 {[%clk 0:00:44]} 26. Rd8 {[%clk 0:00:33]}  Kg7 {[%clk 0:00:44]} 27. Rc8 {[%clk 0:00:30]}  c5 {[%clk 0:00:43]} 28. Bd5 {[%clk 0:00:27]}  Rd6 {[%clk 0:00:43]} 29. c4 {[%clk 0:00:26]}  Ne6 {[%clk 0:00:39]} 30. f4 {[%clk 0:00:22]}  Nd4 {[%clk 0:00:35]} 31. Rc7 {[%clk 0:00:18]}  Rf6 {[%clk 0:00:33]} 32. Rb7 {[%clk 0:00:15]}  h6 {[%clk 0:00:22]} 33. h4 {[%clk 0:00:14]}  g5 {[%clk 0:00:20]} 34. hxg5 {[%clk 0:00:14]}  hxg5 {[%clk 0:00:20]} 35. fxg5 {[%clk 0:00:14]}  Rf5 {[%clk 0:00:20]} 36. Kg2 {[%clk 0:00:13]}  Nc2 {[%clk 0:00:16]} 37. Rxb6 {[%clk 0:00:09]}  Ne3+ {[%clk 0:00:15]} 38. Kg1 {[%clk 0:00:10]}  Nxd5 {[%clk 0:00:14]} 39. cxd5 {[%clk 0:00:10]}  Rxd5 {[%clk 0:00:15]} 40. Rb5 {[%clk 0:00:10]}  Rxg5 {[%clk 0:00:15]} 41. Kf2 {[%clk 0:00:08]}  Rd5 {[%clk 0:00:15]} 42. Rxa5 {[%clk 0:00:05]}  Rd2+ {[%clk 0:00:15]} 43. Kg1 {[%clk 0:00:04]}  Rxb2 {[%clk 0:00:15]} 44. Rxc5 {[%clk 0:00:04]}  Rb3 {[%clk 0:00:16]} 45. Kg2 {[%clk 0:00:04]}  Rxa3 {[%clk 0:00:16]} 46. Rf5 {[%clk 0:00:05]} 1/2-1/2


[Site "https://www.chess.com"]

[Event "Titled Tuesday Blitz May 25 2021"]
[White "Djordjevic, Vuk"]
[Black "Zierk, Steven"]
[WhiteFideId "902098"]
[BlackFideId "2034255"]
[WhiteElo "2463"]
[BlackElo "2502"]
[Result "1-0"]
[Round "07"]
[TimeControl "180+1"]
[Date "2021.05.25"]
[WhiteClock "0:00:37"]
[BlackClock "0:01:30"]

1. d4 {[%clk 0:03:00]}  d5 {[%clk 0:02:58]} 2. Bf4 {[%clk 0:03:01]}  Nf6 {[%clk 0:02:58]} 3. e3 {[%clk 0:03:01]}  c5 {[%clk 0:02:58]} 4. c3 {[%clk 0:03:00]}  e6 {[%clk 0:02:59]} 5. Nd2 {[%clk 0:03:00]}  Bd6 {[%clk 0:02:59]} 6. Bb5+ {[%clk 0:02:51]}  Nc6 {[%clk 0:02:59]} 7. Bg3 {[%clk 0:02:51]}  O-O {[%clk 0:02:51]} 8. Ngf3 {[%clk 0:02:49]}  Qe7 {[%clk 0:02:35]} 9. O-O {[%clk 0:02:40]}  Bd7 {[%clk 0:02:27]} 10. Qe2 {[%clk 0:02:27]}  a6 {[%clk 0:02:25]} 11. Bd3 {[%clk 0:02:27]}  Nh5 {[%clk 0:02:13]} 12. Bxd6 {[%clk 0:02:10]}  Qxd6 {[%clk 0:02:14]} 13. Ne5 {[%clk 0:02:07]}  Nf6 {[%clk 0:02:03]} 14. f4 {[%clk 0:01:58]}  b5 {[%clk 0:02:00]} 15. g4 {[%clk 0:01:49]}  Be8 {[%clk 0:01:51]} 16. g5 {[%clk 0:01:37]}  Nd7 {[%clk 0:01:50]} 17. Rf3 {[%clk 0:01:12]}  f6 {[%clk 0:01:40]} 18. Bxh7+ {[%clk 0:00:35]}  Kxh7 {[%clk 0:01:37]} 19. Rh3+ {[%clk 0:00:36]}  Kg8 {[%clk 0:01:36]} 20. g6 {[%clk 0:00:37]}  fxe5 {[%clk 0:01:30]} 21. Rh8+ {[%clk 0:00:35]}  Kxh8 {[%clk 0:01:29]} 22. Qh5+ {[%clk 0:00:36]}  Kg8 {[%clk 0:01:30]} 23. Qh7# {[%clk 0:00:37]} 1-0


[Site "https://www.chess.com"]

[Event "Titled Tuesday Blitz May 25 2021"]
[White "Dobrov, Vladimir"]
[Black "Sjugirov, Sanan"]
[WhiteFideId "4136594"]
[BlackFideId "4189302"]
[WhiteElo "2614"]
[BlackElo "2472"]
[Result "1-0"]
[Round "07"]
[TimeControl "180+1"]
[Date "2021.05.25"]
[WhiteClock "0:00:21"]
[BlackClock "0:00:00"]

1. b3 {[%clk 0:03:00]}  c5 {[%clk 0:02:56]} 2. Bb2 {[%clk 0:03:01]}  Nc6 {[%clk 0:02:55]} 3. Nf3 {[%clk 0:02:57]}  Nf6 {[%clk 0:02:55]} 4. e3 {[%clk 0:02:55]}  g6 {[%clk 0:02:54]} 5. c4 {[%clk 0:02:36]}  Bg7 {[%clk 0:02:52]} 6. Be2 {[%clk 0:02:32]}  O-O {[%clk 0:02:52]} 7. O-O {[%clk 0:02:33]}  d5 {[%clk 0:02:43]} 8. cxd5 {[%clk 0:02:33]}  Qxd5 {[%clk 0:02:43]} 9. Nc3 {[%clk 0:02:31]}  Qd7 {[%clk 0:02:36]} 10. Bb5 {[%clk 0:02:11]}  a6 {[%clk 0:02:09]} 11. Ne5 {[%clk 0:02:07]}  Qc7 {[%clk 0:02:05]} 12. Bxc6 {[%clk 0:02:02]}  bxc6 {[%clk 0:01:55]} 13. Na4 {[%clk 0:01:58]}  Ne4 {[%clk 0:01:35]} 14. Nc4 {[%clk 0:01:54]}  Bxb2 {[%clk 0:01:32]} 15. Ncxb2 {[%clk 0:01:54]}  Rd8 {[%clk 0:01:26]} 16. d3 {[%clk 0:01:54]}  Bf5 {[%clk 0:00:46]} 17. Qe2 {[%clk 0:01:53]}  Nf6 {[%clk 0:00:38]} 18. Rac1 {[%clk 0:01:53]}  Bg4 {[%clk 0:00:19]} 19. f3 {[%clk 0:01:52]}  Bc8 {[%clk 0:00:16]} 20. e4 {[%clk 0:01:52]}  Nd7 {[%clk 0:00:13]} 21. Qe3 {[%clk 0:01:52]}  a5 {[%clk 0:00:13]} 22. Nxc5 {[%clk 0:01:51]}  Nxc5 {[%clk 0:00:13]} 23. Rxc5 {[%clk 0:01:51]}  Ba6 {[%clk 0:00:13]} 24. Rfc1 {[%clk 0:01:51]}  Rac8 {[%clk 0:00:10]} 25. R1c3 {[%clk 0:01:49]}  Qd6 {[%clk 0:00:09]} 26. f4 {[%clk 0:01:44]}  Qc7 {[%clk 0:00:06]} 27. Kf2 {[%clk 0:01:42]}  Rd7 {[%clk 0:00:04]} 28. d4 {[%clk 0:01:35]}  Qd8 {[%clk 0:00:05]} 29. Kg3 {[%clk 0:01:09]}  Rxd4 {[%clk 0:00:04]} 30. e5 {[%clk 0:01:04]}  Rd2 {[%clk 0:00:02]} 31. Rc2 {[%clk 0:01:01]}  Rxc2 {[%clk 0:00:02]} 32. Rxc2 {[%clk 0:01:02]}  c5 {[%clk 0:00:03]} 33. Rd2 {[%clk 0:00:59]}  Qc7 {[%clk 0:00:03]} 34. Na4 {[%clk 0:00:50]}  Qc6 {[%clk 0:00:03]} 35. Rc2 {[%clk 0:00:48]}  Bb7 {[%clk 0:00:03]} 36. Nxc5 {[%clk 0:00:42]}  Ba8 {[%clk 0:00:03]} 37. h4 {[%clk 0:00:38]}  h5 {[%clk 0:00:02]} 38. Kh2 {[%clk 0:00:36]}  Qb6 {[%clk 0:00:02]} 39. Qf2 {[%clk 0:00:36]}  Rc6 {[%clk 0:00:02]} 40. Nd3 {[%clk 0:00:30]}  Qc7 {[%clk 0:00:02]} 41. Rd2 {[%clk 0:00:28]}  Rc3 {[%clk 0:00:02]} 42. f5 {[%clk 0:00:28]}  Qc6 {[%clk 0:00:01]} 43. e6 {[%clk 0:00:27]}  Qc7+ {[%clk 0:00:01]} 44. Kg1 {[%clk 0:00:23]}  f6 {[%clk 0:00:01]} 45. fxg6 {[%clk 0:00:23]}  Rc6 {[%clk 0:00:01]} 46. Re2 {[%clk 0:00:22]}  Rc3 {[%clk 0:00:00]} 47. Nf4 {[%clk 0:00:21]} 1-0


[Site "https://www.chess.com"]

[Event "Titled Tuesday Blitz May 25 2021"]
[White "Erdogdu, Mert"]
[Black "Davtyan, David Arm."]
[WhiteFideId "6301495"]
[BlackFideId "13310046"]
[WhiteElo "2485"]
[BlackElo "2028"]
[Result "1-0"]
[Round "07"]
[TimeControl "180+1"]
[Date "2021.05.25"]
[WhiteClock "0:01:23"]
[BlackClock "0:01:56"]

1. e4 {[%clk 0:03:00]}  c5 {[%clk 0:02:58]} 2. Nf3 {[%clk 0:03:01]}  Nc6 {[%clk 0:02:59]} 3. d4 {[%clk 0:03:01]}  cxd4 {[%clk 0:02:59]} 4. Nxd4 {[%clk 0:03:02]}  e5 {[%clk 0:03:00]} 5. Nb5 {[%clk 0:03:02]}  d6 {[%clk 0:03:00]} 6. c4 {[%clk 0:03:02]}  Nf6 {[%clk 0:02:58]} 7. N1c3 {[%clk 0:03:01]}  Be7 {[%clk 0:02:58]} 8. Nd5 {[%clk 0:02:54]}  Nxd5 {[%clk 0:02:53]} 9. cxd5 {[%clk 0:02:53]}  Nb8 {[%clk 0:02:53]} 10. a4 {[%clk 0:02:40]}  a6 {[%clk 0:02:52]} 11. Na3 {[%clk 0:02:38]}  O-O {[%clk 0:02:46]} 12. Bd3 {[%clk 0:02:36]}  f5 {[%clk 0:02:44]} 13. exf5 {[%clk 0:02:35]}  Bxf5 {[%clk 0:02:45]} 14. Bxf5 {[%clk 0:02:35]}  Rxf5 {[%clk 0:02:43]} 15. O-O {[%clk 0:02:36]}  Nd7 {[%clk 0:02:34]} 16. Be3 {[%clk 0:02:32]}  Qf8 {[%clk 0:02:28]} 17. Rc1 {[%clk 0:02:26]}  Qf7 {[%clk 0:02:23]} 18. Rc7 {[%clk 0:02:22]}  Nf6 {[%clk 0:02:17]} 19. Nc4 {[%clk 0:01:44]}  Qxd5 {[%clk 0:02:10]} 20. Rxe7 {[%clk 0:01:34]}  Qxc4 {[%clk 0:02:09]} 21. Qxd6 {[%clk 0:01:34]}  Ne4 {[%clk 0:01:56]} 22. Qd7 {[%clk 0:01:23]}  Raf8 {[%clk 0:01:54]} 23. Rxg7+ {[%clk 0:01:22]}  Kh8 {[%clk 0:01:55]} 24. Rxh7+ {[%clk 0:01:23]}  Kg8 {[%clk 0:01:56]} 25. Qg7# {[%clk 0:01:23]} 1-0


[Site "https://www.chess.com"]

[Event "Titled Tuesday Blitz May 25 2021"]
[White "Ghimpu, Samuel-Timotei"]
[Black "Nitish Belurkar"]
[WhiteFideId "1238175"]
[BlackFideId "5084768"]
[WhiteElo "2026"]
[BlackElo "2306"]
[Result "0-1"]
[Round "07"]
[TimeControl "180+1"]
[Date "2021.05.25"]
[WhiteClock "0:00:04"]
[BlackClock "0:01:27"]

1. e4 {[%clk 0:02:56]}  d5 {[%clk 0:02:57]} 2. exd5 {[%clk 0:02:55]}  Nf6 {[%clk 0:02:55]} 3. Nf3 {[%clk 0:02:52]}  Nxd5 {[%clk 0:02:55]} 4. d4 {[%clk 0:02:51]}  Bf5 {[%clk 0:02:55]} 5. a3 {[%clk 0:02:38]}  e6 {[%clk 0:02:55]} 6. c4 {[%clk 0:02:37]}  Nf6 {[%clk 0:02:55]} 7. Nc3 {[%clk 0:02:37]}  c5 {[%clk 0:02:54]} 8. Be2 {[%clk 0:02:17]}  Be7 {[%clk 0:02:53]} 9. O-O {[%clk 0:02:15]}  O-O {[%clk 0:02:53]} 10. h3 {[%clk 0:02:16]}  Nbd7 {[%clk 0:02:50]} 11. Be3 {[%clk 0:02:13]}  h6 {[%clk 0:02:49]} 12. dxc5 {[%clk 0:02:02]}  Nxc5 {[%clk 0:02:39]} 13. b4 {[%clk 0:01:50]}  Nce4 {[%clk 0:02:35]} 14. Nxe4 {[%clk 0:01:46]}  Nxe4 {[%clk 0:02:36]} 15. Qb3 {[%clk 0:01:45]}  Bf6 {[%clk 0:02:29]} 16. Rad1 {[%clk 0:01:43]}  Qe7 {[%clk 0:02:25]} 17. Nd4 {[%clk 0:01:27]}  Bg6 {[%clk 0:02:23]} 18. c5 {[%clk 0:01:23]}  a6 {[%clk 0:02:20]} 19. Bf3 {[%clk 0:01:18]}  Rfd8 {[%clk 0:02:18]} 20. Qc4 {[%clk 0:01:01]}  Rac8 {[%clk 0:02:16]} 21. Nb3 {[%clk 0:00:43]}  Nc3 {[%clk 0:02:03]} 22. Rxd8+ {[%clk 0:00:43]}  Rxd8 {[%clk 0:02:04]} 23. Na5 {[%clk 0:00:43]}  Bd3 {[%clk 0:02:00]} 24. Qb3 {[%clk 0:00:30]}  Bxf1 {[%clk 0:01:56]} 25. Kxf1 {[%clk 0:00:31]}  Nd5 {[%clk 0:01:53]} 26. Bd2 {[%clk 0:00:26]}  Qc7 {[%clk 0:01:50]} 27. Kg1 {[%clk 0:00:22]}  b6 {[%clk 0:01:48]} 28. cxb6 {[%clk 0:00:18]}  Qxb6 {[%clk 0:01:48]} 29. Nc4 {[%clk 0:00:18]}  Qd4 {[%clk 0:01:46]} 30. Be1 {[%clk 0:00:08]}  Rc8 {[%clk 0:01:30]} 31. Ne3 {[%clk 0:00:04]}  Rc1 {[%clk 0:01:27]} 0-1


[Site "https://www.chess.com"]